bitfinex/quotes_ETHUSD_20240823
["timestamp","ask_amount","ask_price","bid_price","bid_amount"]
[1724437297191,3.65537,2735.7,2734.1,8.6249]
[1724437297358,0.07177311,2735.6,2734.6,3.65681]
[1724437297712,12.18946,2735.8,2734.5,3.65696]
[1724437297998,12.18946,2735.8,2734.6,4.022516]
[1724437298208,0.07177311,2735.7,2734.6,4.022526]
[1724437298522,8.5342,2735.8,2734.8,3.65653]
[1724437298800,0.1301956,2736.0,2735.0,3.65627]
[1724437298947,0.1301956,2736.0,2735.3,3.6559]
[1724437299144,0.1301956,2736.0,2735.4,0.36559]
[1724437299459,0.1301956,2736.0,2734.9,8.8]
[1724437299460,0.1301956,2736.0,2734.9,14.51637501]
[1724437299606,0.1301956,2736.0,2735.3,7.31174]
[1724437300162,0.1301956,2736.0,2734.9,8.8]
[1724437300365,0.1301956,2736.0,2734.7,3.0]
[1724437300366,8.6868,2735.9,2734.7,3.0]
[1724437300608,0.07177311,2735.8,2734.4,3.65706]
[1724437300907,0.07177311,2735.8,2733.8,3.6579]
[1724437300908,8.75857311,2735.4,2733.8,3.6579]
[1724437301210,1.27642531,2735.3,2734.0,3.65762]
[1724437301388,0.07177311,2735.2,2734.1,3.65743]
[1724437301573,0.35,2735.5,2734.0,8.4884]
[1724437301775,0.35,2735.5,2734.7,3.65668]
[1724437301963,0.35,2735.5,2734.8,12.32036]
[1724437302188,0.35,2735.5,2734.9,4.888446]
[1724437302506,0.35,2735.5,2735.2,3.65598]
[1724437302802,0.35,2735.5,2735.3,3.65589]
[1724437302972,0.35,2735.5,2735.0,3.0]
[1724437303175,0.35,2735.5,2735.2,3.65603]
[1724437303375,0.35,2735.5,2735.3,0.365603]
[1724437303760,0.35,2735.5,2734.9,1.232036]
[1724437303965,0.35,2735.5,2735.0,3.65625]
[1724437304200,0.35,2735.5,2734.9,1.232036]
[1724437304506,0.35,2735.5,2734.5,3.0]
[1724437304705,0.07177311,2735.4,2734.2,8.7873]
[1724437304910,0.07177311,2735.4,2734.2,12.44464]
[1724437305201,9.0818,2735.3,2734.2,3.65734]
[1724437305394,0.07177311,2735.2,2734.2,3.65734]
[1724437305587,0.91535731,2735.1,2734.0,3.65762]
[1724437305790,0.07177311,2735.0,2734.0,3.65762]
[1724437305974,0.07177311,2735.0,2733.7,3.658]
[1724437306186,3.72809311,2735.0,2733.7,3.658]
[1724437306407,12.73824,2734.9,2733.7,3.658]
[1724437306592,12.232,2734.7,2733.4,3.6584]
[1724437306777,0.07177311,2734.6,2733.2,3.65868]
[1724437307015,8.5753,2734.3,2733.1,3.65874]
[1724437307197,12.23282,2734.1,2732.3,8.7824]
[1724437307401,8.5753,2733.9,2732.3,8.7824]
[1724437307601,8.5753,2733.9,2733.0,3.6589]
[1724437307917,8.5753,2733.9,2733.1,3.65883]
[1724437308139,8.5753,2733.9,2732.9,3.65908]
[1724437308809,8.5753,2733.9,2732.8,3.65918]
[1724437309047,3.0,2734.2,2733.0,8.7413]
[1724437309259,8.4366,2734.4,2733.7,3.65802]
[1724437309742,8.4366,2734.4,2733.4,3.65842]
[1724437309901,8.4366,2734.4,2733.5,3.65819]
[1724437310108,8.4366,2734.4,2733.6,3.65805]
[1724437310298,8.7047,2734.8,2733.7,3.65797]
[1724437310505,0.87047,2734.7,2733.8,0.365797]
[1724437311453,8.7047,2734.8,2733.8,0.365797]
[1724437311604,8.7047,2734.8,2733.9,0.07314621]
[1724437311955,8.7047,2734.8,2734.1,3.6575]
[1724437312542,8.6229,2735.4,2734.1,3.65749]
[1724437312742,1.33463111,2735.3,2734.2,0.365749]
[1724437313104,1.262858,2735.3,2734.2,4.023119]
[1724437313444,1.33463111,2735.3,2734.2,0.365749]
[1724437313607,1.33463111,2735.3,2734.1,3.65748]
[1724437313803,0.07177311,2735.2,2734.1,3.65748]
[1724437314012,8.6229,2735.1,2733.7,3.65802]
[1724437314205,0.07177311,2735.0,2733.5,3.0]
[1724437314436,0.07177311,2735.0,2733.8,3.65789]
[1724437314648,1.23508531,2734.9,2733.9,0.365789]
[1724437314978,8.7665,2734.7,2733.5,3.65821]
[1724437315196,0.07177311,2734.6,2733.7,3.65794]
[1724437315375,8.7665,2734.7,2733.9,3.65776]
[1724437315872,0.07177311,2734.6,2733.7,3.65798]
[1724437316035,8.7665,2734.7,2733.8,3.65789]
[1724437316237,8.7665,2734.7,2733.9,0.365789]
[1724437316442,8.7665,2734.7,2733.9,4.023549]
[1724437316644,0.07177311,2734.6,2733.9,4.023549]
[1724437317039,8.7665,2734.7,2733.9,4.023549]
[1724437318274,8.7665,2734.7,2733.8,3.65783]
[1724437318639,8.7665,2734.7,2734.0,3.65752]
[1724437318838,8.7665,2734.7,2734.2,3.65735]
[1724437319257,8.7665,2734.7,2734.3,3.65722]
[1724437319465,8.9964,2735.2,2734.4,3.65706]
[1724437319669,13.0223258,2735.2,2734.4,3.65706]
[1724437320915,13.0223258,2735.2,2734.2,3.65725]
[1724437320916,8.9964,2735.2,2734.2,3.65725]
[1724437321101,8.8186,2735.7,2735.1,3.65616]
[1724437321262,8.8186,2735.7,2735.2,3.65603]
[1724437322011,0.1301956,2736.0,2735.4,3.65577]
[1724437322210,0.1301956,2736.0,2735.2,3.65596]
[1724437322412,0.1301956,2736.0,2734.6,3.65682]
[1724437322413,8.8401,2735.5,2734.8,3.65647]
[1724437322582,8.8401,2735.5,2734.9,0.365647]
[1724437322912,8.8401,2735.5,2734.3,7.20711]
[1724437322913,12.14612,2735.3,2734.2,7.31456]
[1724437323076,12.14612,2735.3,2734.4,3.65704]
[1724437323077,8.4901,2735.3,2734.4,3.65704]
[1724437323273,8.2806,2734.9,2733.8,3.6579]
[1724437323587,3.07177311,2734.8,2733.9,3.65773]
[1724437323912,8.2806,2734.6,2733.4,3.6584]
[1724437324081,8.2806,2734.6,2733.6,3.65808]
[1724437324082,3.90701042,2734.5,2733.6,3.65808]
[1724437324409,3.90701042,2734.5,2733.5,0.36584]
[1724437324633,7.56399042,2734.5,2733.5,0.36584]
[1724437324919,4.00574,2735.5,2733.7,3.65794]
[1724437324920,0.35,2735.5,2733.7,3.65794]
[1724437325074,8.8174,2735.3,2734.1,3.65746]
[1724437325274,4.61675042,2735.2,2734.2,3.65734]
[1724437325520,8.8174,2735.1,2734.0,3.65755]
[1724437325687,0.07177311,2735.0,2734.0,3.65755]
[1724437325899,8.8174,2735.1,2733.6,8.8983]
[1724437326079,8.8174,2735.1,2734.2,3.6573]
[1724437326279,4.33623673,2735.0,2734.2,3.6573]
[1724437326623,4.33623673,2735.0,2734.1,3.65748]
[1724437326914,4.40800984,2735.0,2733.9,3.65777]
[1724437327303,4.33623673,2735.0,2734.0,3.65764]
[1724437327477,4.33623673,2735.0,2734.1,3.6575]
[1724437327675,1.68098167,2734.9,2734.1,3.6575]
[1724437327943,8.2487,2734.8,2733.7,3.65802]
[1724437328083,3.0,2734.7,2733.7,3.65802]
[1724437328276,0.07177311,2734.6,2733.7,3.65802]
[1724437328621,3.0,2734.7,2734.0,3.65763]
[1724437328856,8.2487,2734.8,2734.2,3.65732]
[1724437328985,8.2487,2734.8,2734.5,3.65697]
[1724437329183,4.00567,2735.5,2733.7,8.8332]
[1724437329184,8.5886,2735.4,2734.7,3.65669]
[1724437329393,0.07177311,2735.3,2734.6,3.6568]
[1724437329835,0.07177311,2735.3,2734.4,3.65708]
[1724437330169,0.93781042,2735.2,2734.3,3.65722]
[1724437330363,8.5886,2735.1,2734.1,3.65741]
[1724437330508,8.5886,2735.1,2734.0,3.65759]
[1724437330509,3.07177311,2735.0,2734.0,3.65759]
[1724437331114,8.3567,2734.9,2734.0,3.65759]
[1724437331315,0.07177311,2734.8,2733.6,3.65813]
[1724437331563,8.3567,2734.7,2733.8,3.65779]
[1724437331769,0.07177311,2734.6,2733.5,0.36584]
[1724437331925,8.5358,2734.5,2733.6,3.65808]
[1724437332124,3.0,2734.4,2733.7,3.65795]
[1724437332729,0.07177311,2734.3,2733.7,3.65795]
[1724437332929,3.0,2734.4,2733.8,3.65778]
[1724437333141,0.07177311,2734.3,2733.7,3.65803]
[1724437333355,3.0,2734.4,2733.7,3.65803]
[1724437333673,3.07177311,2734.4,2733.6,3.65812]
[1724437333911,3.07177311,2734.4,2733.5,3.65828]
[1724437334064,1.16075731,2734.3,2733.5,3.65828]
[1724437334377,0.07177311,2734.2,2733.5,3.65828]
[1724437334675,0.07177311,2734.2,2733.5,3.65827]
[1724437334978,8.4195,2734.1,2733.3,3.65857]
[1724437335176,0.07177311,2734.0,2733.1,3.65883]
[1724437335471,1.16075731,2734.3,2733.3,3.65852]
[1724437335698,0.07177311,2734.2,2733.2,3.65859]
[1724437335835,8.6131,2734.1,2733.1,3.65882]
[1724437336037,0.07177311,2734.0,2733.0,3.65898]
[1724437336259,8.6131,2733.8,2732.8,3.65922]
[1724437336775,7.8558,2733.6,2732.7,3.65935]
[1724437337079,0.62177311,2733.7,2732.1,8.6783]
[1724437337080,7.8558,2733.5,2732.1,8.6783]
[1724437337277,0.07177311,2733.4,2732.8,3.65916]
[1724437337510,0.07177311,2733.4,2732.6,3.6595]
[1724437337804,0.86453042,2733.4,2732.6,3.6595]
[1724437337942,0.86453042,2733.4,2732.7,3.65935]
[1724437338369,7.8558,2733.5,2732.2,8.6783]
[1724437338576,0.07177311,2733.4,2732.7,3.65926]
[1724437339175,3.65881,2733.2,2731.7,8.6783]
[1724437339391,7.8558,2732.9,2731.6,3.66084]
[1724437339585,7.8558,2732.9,2731.0,3.66155]
[1724437339586,7.8558,2732.6,2731.3,3.66121]
[1724437339744,1.22330411,2732.5,2731.5,3.66098]
[1724437339943,1.22330411,2732.5,2731.6,3.66085]
[1724437340145,7.8558,2732.4,2731.4,4.027181]
[1724437340395,7.8558,2732.1,2730.8,3.66189]
[1724437340679,3.73210311,2732.0,2730.8,3.66189]
[1724437340984,8.4069,2731.7,2730.4,3.66243]
[1724437341173,8.4069,2731.5,2729.9,3.66313]
[1724437341481,8.4069,2730.4,2728.9,3.66441]
[1724437341685,8.4069,2730.4,2728.6,3.66485]
[1724437341686,0.07177311,2730.3,2729.4,3.6638]
[1724437342009,0.07177311,2730.2,2729.3,3.66394]
[1724437342141,0.07177311,2730.2,2729.0,0.366441]
[1724437342342,0.07177311,2730.2,2729.1,3.66419]
[1724437342648,7.8848,2730.0,2728.7,3.66472]
[1724437342898,7.8848,2730.4,2729.9,3.66313]
[1724437343094,7.8848,2730.8,2730.2,3.66261]
[1724437343304,7.8848,2730.8,2730.2,3.66271]
[1724437345417,3.62177311,2730.7,2729.8,3.66325]
[1724437345713,3.62177311,2730.7,2729.7,3.66339]
[1724437346409,3.62177311,2730.7,2728.9,11.57156]
[1724437346410,8.556,2730.6,2729.6,3.66353]
[1724437346545,12.84555042,2730.5,2729.6,3.66352]
[1724437346746,9.84555042,2730.5,2729.6,3.66352]
[1724437346943,3.0,2730.4,2729.6,3.66352]
[1724437347147,0.07177311,2730.3,2728.5,7.9072]
[1724437347347,3.0,2730.4,2728.8,3.66459]
[1724437347547,1.27737773,2730.3,2729.7,3.6633]
[1724437348012,1.3536111,2730.3,2728.9,0.366459]
[1724437348159,0.07623337,2730.3,2729.9,3.66303]
[1724437348371,0.07623337,2730.3,2728.7,7.9166]
[1724437348577,0.07623337,2730.3,2730.2,7.32546]
[1724437348772,0.07623337,2730.3,2730.2,10.98819]
[1724437349098,0.07623337,2730.3,2730.2,7.32546]
[1724437349306,0.07623337,2730.3,2730.2,8.424306]
[1724437349459,0.07623337,2730.3,2730.2,17.123306]
[1724437349663,0.76384079,2733.0,2730.2,17.123306]
[1724437349664,8.528,2732.4,2731.4,3.66103]
[1724437349883,8.528,2732.4,2731.7,3.66071]
[1724437350097,8.528,2732.4,2731.5,3.66097]
[1724437350296,8.528,2732.4,2731.3,3.66122]
[1724437350297,0.8528,2732.3,2731.6,3.66084]
[1724437350507,0.8528,2732.3,2731.4,3.66104]
[1724437350726,0.07177311,2732.2,2731.3,3.66122]
[1724437351200,0.8528,2732.3,2731.9,3.66044]
[1724437351369,8.528,2732.4,2731.9,3.66044]
[1724437351562,9.3808,2732.4,2731.9,3.66044]
[1724437351964,9.3808,2732.4,2731.7,3.66071]
[1724437352202,9.3808,2732.4,2731.8,3.66058]
[1724437352401,9.3808,2732.4,2731.9,3.66043]
[1724437352586,9.3808,2732.4,2731.8,3.66058]
[1724437352813,0.93808,2732.3,2731.9,3.66044]
[1724437353136,8.528,2732.4,2731.0,3.0]
[1724437353137,8.528,2732.4,2731.7,3.6606]
[1724437353426,8.6966,2733.2,2732.1,3.66008]
[1724437353784,0.07177311,2733.1,2731.9,3.66042]
[1724437354024,3.65935,2732.8,2731.7,3.66071]
[1724437354255,0.07177311,2732.7,2731.9,3.66045]
[1724437354528,3.0,2732.9,2731.5,3.66097]
[1724437354794,8.6966,2733.0,2732.5,3.6596]
[1724437355045,8.5424,2733.5,2732.7,3.65936]
[1724437355199,8.5424,2733.5,2732.8,3.65923]
[1724437355406,8.5424,2733.5,2732.9,3.6591]
[1724437355620,0.85424,2733.4,2733.0,3.65894]
[1724437355902,0.85424,2733.4,2732.6,3.65948]
[1724437355903,0.92601311,2733.4,2732.6,3.65948]
[1724437357161,0.92601311,2733.4,2732.4,3.65973]
[1724437357308,0.92601311,2733.4,2732.5,3.65963]
[1724437357641,0.92601311,2733.4,2732.4,3.65973]
[1724437357831,1.31267431,2733.3,2732.4,3.65973]
[1724437358741,0.85424,2733.4,2732.7,3.65937]
[1724437358959,0.85424,2733.4,2732.5,0.07318671]
[1724437358960,0.85424,2733.4,2732.4,7.9074]
[1724437359139,3.0,2733.7,2732.4,7.9074]
[1724437359140,3.0,2733.7,2733.0,3.65887]
[1724437359456,7.9327,2733.9,2733.0,3.65887]
[1724437359457,3.0,2733.8,2733.0,3.65887]
[1724437359849,3.0,2733.8,2732.9,3.65909]
[1724437360454,7.9327,2733.9,2733.0,0.073177]
[1724437360690,7.9748,2734.6,2732.9,3.65899]
[1724437360867,1.23492911,2734.5,2733.5,3.65822]
[1724437361114,3.65711,2734.4,2733.3,3.65844]
[1724437361393,0.07177311,2734.3,2733.3,3.65844]
[1724437361559,7.9748,2734.2,2732.8,3.65916]
[1724437361886,4.579639,2734.1,2732.9,3.6591]
[1724437362070,4.579639,2734.1,2733.0,3.65897]
[1724437362071,3.0,2734.0,2733.0,3.65897]
[1724437362274,3.07177311,2734.0,2732.9,3.6591]
[1724437362472,6.72942311,2734.0,2732.9,3.6591]
[1724437362671,3.65778,2733.9,2732.9,3.6591]
[1724437362844,3.74472842,2733.8,2733.0,3.65897]
[1724437363050,3.74472842,2733.8,2733.1,3.65875]
[1724437363051,0.67295531,2733.8,2733.1,3.65875]
[1724437363276,0.07177311,2733.7,2732.9,3.65906]
[1724437363491,0.07177311,2733.7,2732.9,3.659]
[1724437363901,3.0,2733.8,2732.9,3.659]
[1724437364079,3.0,2734.0,2732.9,3.659]
[1724437364288,0.07177311,2733.9,2732.9,3.659]
[1724437364468,0.37294131,2733.8,2732.9,3.659]
[1724437364669,0.37294131,2733.8,2733.1,3.65876]
[1724437364886,0.44471442,2733.8,2732.9,3.65907]
[1724437365090,3.85032589,2734.1,2732.5,3.0]
[1724437365091,8.111,2733.6,2732.6,3.65943]
[1724437365274,8.111,2733.6,2732.5,6.65959]
[1724437365275,0.07177311,2733.5,2732.5,3.65959]
[1724437365507,0.07177311,2733.5,2732.4,3.65972]
[1724437365817,6.73009311,2733.5,2732.4,7.3194]
[1724437366120,1.84993731,2733.4,2732.5,3.65961]
[1724437366408,0.07177311,2733.3,2732.2,3.65999]
[1724437366562,0.07177311,2733.2,2732.2,3.65999]
[1724437366963,6.73050311,2733.2,2732.2,3.65999]
[1724437367161,6.73050311,2733.2,2732.0,12.23938]
[1724437367162,11.83716,2733.1,2732.0,3.66021]
[1724437367364,5.22177642,2733.0,2732.0,3.66021]
[1724437367646,3.0,2732.9,2731.8,3.66052]
[1724437367815,3.73110311,2732.8,2731.8,3.66052]
[1724437368001,3.0,2732.9,2731.8,3.66052]
[1724437368002,0.07177311,2732.7,2731.8,3.66048]
[1724437368213,8.0948,2732.6,2731.6,3.6608]
[1724437368362,1.25437742,2732.5,2731.6,3.66076]
[1724437368570,1.25437742,2732.5,2730.6,3.66211]
[1724437368571,4.25437742,2732.5,2731.0,3.66159]
[1724437368766,11.75534,2731.9,2730.8,3.66188]
[1724437369008,11.75534,2731.9,2730.8,3.66182]
[1724437369009,0.07177311,2731.8,2730.8,3.66182]
[1724437369336,0.07177311,2731.7,2729.1,3.66418]
[1724437369618,8.92657731,2731.6,2730.6,3.66218]
[1724437369833,8.92657731,2731.6,2730.8,3.66181]
[1724437369966,8.92657731,2731.6,2729.9,3.66312]
[1724437369967,3.07177311,2731.5,2729.9,3.66312]
[1724437370165,3.07177311,2731.5,2730.8,3.66182]
[1724437370470,1.19983504,2731.4,2730.9,3.66173]
[1724437370676,1.19983504,2731.4,2731.0,3.66153]
[1724437371050,0.30717731,2731.6,2731.1,3.66144]
[1724437371182,8.2243,2732.0,2731.5,3.66097]
[1724437371385,8.2243,2732.0,2731.4,3.66103]
[1724437371386,8.6559,2732.4,2731.6,3.66082]
[1724437371628,8.6559,2732.4,2731.3,3.66121]
[1724437371790,8.6559,2732.4,2730.8,3.0]
[1724437371791,0.07177311,2732.3,2730.8,3.0]
[1724437371984,4.60470042,2732.2,2731.1,3.66146]
[1724437372198,4.60470042,2732.2,2731.2,3.66139]
[1724437372384,4.60470042,2732.2,2730.8,3.66191]
[1724437372385,8.0557,2732.0,2730.8,3.66191]
[1724437372584,0.07177311,2731.9,2730.3,12.02992]
[1724437372798,3.66069,2731.8,2730.6,3.66213]
[1724437373025,8.0557,2731.6,2730.2,3.66271]
[1724437373209,3.44501942,2731.7,2729.7,0.366346]
[1724437373210,8.0557,2731.4,2729.7,0.366346]
[1724437373410,8.4665,2731.0,2729.7,0.366346]
[1724437373719,8.4665,2731.0,2730.1,3.66275]
[1724437373918,8.4665,2731.0,2729.9,3.66312]
[1724437374077,0.84665,2730.9,2729.9,3.66312]
[1724437374600,8.4665,2731.0,2729.7,0.366346]
[1724437374800,8.4665,2731.0,2730.5,3.66226]
[1724437375102,8.4665,2731.0,2730.3,3.66257]
[1724437375318,8.4665,2731.0,2730.4,3.66239]
[1724437375522,3.0,2731.3,2729.7,0.366346]
[1724437375832,1.23469311,2731.2,2730.3,3.6626]
[1724437376291,1.23469311,2731.2,2729.8,0.7029786]
[1724437376292,1.16292,2731.2,2730.5,3.66224]
[1724437376617,3.0,2731.3,2730.5,3.66224]
[1724437376618,3.07177311,2731.3,2730.5,3.6623]
[1724437376914,8.2318,2731.8,2730.8,3.66183]
[1724437377086,8.2318,2731.8,2730.1,3.66285]
[1724437377087,8.2318,2731.6,2730.7,3.66204]
[1724437377290,8.2318,2731.6,2730.4,3.66246]
[1724437377291,0.07177311,2731.5,2730.5,3.66229]
[1724437377498,0.83035731,2731.4,2730.6,3.66218]
[1724437377698,0.07177311,2731.3,2730.4,3.66246]
[1724437377901,0.07177311,2731.3,2730.6,3.66217]
[1724437378106,8.2318,2731.6,2730.0,3.0]
[1724437378107,3.0,2731.5,2730.2,3.66269]
[1724437378280,8.2318,2731.6,2731.0,3.66162]
[1724437378490,9.05498,2731.6,2731.0,3.66162]
[1724437379029,0.07177311,2731.5,2730.9,3.66175]
[1724437379229,0.07177311,2732.0,2730.5,12.28572]
[1724437379430,3.73212311,2732.0,2730.8,3.66192]
[1724437379737,3.73212311,2732.0,2730.6,3.66219]
[1724437379884,9.80302231,2731.9,2730.3,3.0]
[1724437380083,0.07177311,2731.8,2731.0,3.66165]
[1724437380284,8.6367,2731.6,2730.0,3.66288]
[1724437380525,8.6367,2731.6,2729.7,0.366346]
[1724437380526,3.07177311,2731.5,2730.3,3.66257]
[1724437380694,3.07177311,2731.5,2730.2,3.0]
[1724437380885,8.6367,2731.3,2730.2,3.66271]
[1724437381087,6.73316311,2731.2,2730.1,3.66285]
[1724437381286,3.07177311,2731.2,2730.1,3.66285]
[1724437381537,3.07177311,2731.2,2730.2,3.66273]
[1724437381743,3.07177311,2731.2,2729.9,3.66308]
[1724437381744,7.9223,2731.1,2730.0,3.66292]
[1724437382046,7.9223,2731.1,2730.0,3.663]
[1724437382047,4.53732142,2731.0,2730.0,3.663]
[1724437382183,4.53732142,2731.0,2729.8,3.66324]
[1724437382184,7.9223,2730.9,2729.8,3.66324]
[1724437382387,6.73370311,2730.8,2729.7,3.66336]
[1724437382586,7.9223,2730.6,2729.7,3.6634]
[1724437382825,0.87118042,2730.5,2729.7,3.6634]
[1724437383200,0.87118042,2730.5,2729.4,3.66377]
[1724437383201,8.3072,2730.4,2729.4,3.66377]
[1724437383525,0.07177311,2730.3,2729.5,3.66367]
[1724437383711,0.07177311,2730.2,2729.5,3.66367]
[1724437384040,3.0,2730.3,2729.5,3.66365]
[1724437384187,4.21066073,2730.3,2729.6,3.66349]
[1724437385486,8.3072,2730.4,2729.8,3.66324]
[1724437385887,8.3072,2730.4,2729.9,3.6631]
[1724437386097,8.3072,2730.4,2729.8,3.66324]
[1724437386311,0.07177311,2730.3,2729.6,3.66342]
[1724437386849,0.07177311,2730.3,2729.5,3.66355]
[1724437387051,0.83789731,2730.2,2729.5,3.66355]
[1724437387240,0.07177311,2730.1,2729.5,3.66355]
[1724437387569,0.83789731,2730.2,2729.4,3.66376]
[1724437387852,0.07177311,2730.1,2729.4,3.66379]
[1724437388066,0.07177311,2730.1,2729.3,3.66391]
[1724437388206,0.07177311,2730.1,2729.4,3.66379]
[1724437388207,0.46274015,2730.1,2729.4,3.66379]
[1724437388408,0.46274015,2730.1,2729.6,3.66353]
[1724437388611,0.39096704,2730.1,2729.4,3.66379]
[1724437388812,0.39096704,2730.1,2729.4,3.6637]
[1724437389209,8.21377311,2730.0,2729.4,3.6637]
[1724437389417,8.142,2730.0,2729.6,3.66345]
[1724437389723,3.66126,2731.3,2730.0,3.66289]
[1724437389724,8.142,2730.4,2730.0,3.66289]
[1724437390053,8.142,2730.4,2729.8,3.66321]
[1724437390454,8.142,2730.4,2729.0,3.0]
[1724437390455,8.142,2730.4,2729.1,12.19216]
[1724437390751,8.142,2730.4,2729.8,3.66325]
[1724437391053,4.11345266,2731.5,2730.2,3.66271]
[1724437391054,8.5519,2731.2,2730.2,3.66271]
[1724437391259,8.5519,2731.2,2730.4,3.66244]
[1724437391419,8.5519,2731.2,2729.8,11.90742]
[1724437391420,8.5519,2731.2,2730.3,3.66255]
[1724437391616,0.07177311,2731.1,2730.3,3.66255]
[1724437391838,8.5519,2731.2,2730.6,3.66207]
[1724437392152,8.5519,2731.2,2730.1,3.66283]
[1724437392153,0.07177311,2731.1,2730.1,3.66283]
[1724437392326,3.66179,2731.0,2730.0,3.66293]
[1724437392524,0.07177311,2730.9,2730.0,3.66289]
[1724437392951,8.5166,2730.8,2730.0,3.66289]
[1724437393151,8.5166,2730.8,2729.8,3.66322]
[1724437393152,0.93061042,2730.7,2729.8,3.66322]
[1724437393355,0.92145562,2730.7,2729.6,3.66347]
[1724437393681,8.5166,2730.6,2729.5,3.66365]
[1724437393827,0.07177311,2730.5,2729.8,3.66325]
[1724437394164,3.0,2730.5,2729.2,3.664]
[1724437394320,0.07177311,2730.5,2730.0,3.66295]
[1724437394516,8.5166,2730.6,2730.1,3.66286]
[1724437394920,8.5166,2730.6,2729.9,3.66311]
[1724437395141,0.07177311,2730.5,2729.9,3.66311]
[1724437395530,8.5166,2730.6,2729.4,3.66371]
[1724437395731,8.5166,2730.6,2729.5,0.433011]
[1724437395932,8.5028,2730.9,2730.1,3.66281]
[1724437396135,3.0,2730.8,2730.1,3.66281]
[1724437396330,3.0,2730.8,2730.3,3.66259]
[1724437396659,8.5028,2730.9,2729.6,8.2805]
[1724437396851,8.5028,2730.6,2729.7,3.66338]
[1724437397043,8.5028,2730.6,2729.5,0.433011]
[1724437397044,8.5028,2730.6,2730.0,3.66294]
[1724437397369,0.07177311,2730.5,2729.8,3.66323]
[1724437397670,0.07177311,2730.5,2729.9,3.66305]
[1724437397871,0.07177311,2730.5,2729.7,3.66332]
[1724437398153,0.85745731,2730.4,2729.7,3.66332]
[1724437398818,0.85745731,2730.4,2729.5,4.096641]
[1724437398819,0.85745731,2730.4,2729.8,3.66314]
[1724437399023,0.07177311,2730.5,2729.9,3.66312]
[1724437399327,0.07177311,2730.5,2729.7,3.6634]
[1724437399527,3.07177311,2730.5,2729.5,3.66364]
[1724437399717,3.07177311,2730.5,2729.7,3.66328]
[1724437401300,3.07177311,2730.5,2729.5,3.66366]
[1724437401510,4.22923042,2730.5,2729.5,0.433006]
[1724437401651,4.22923042,2730.5,2729.1,3.66413]
[1724437401844,4.22923042,2730.5,2729.7,3.6633]
[1724437402199,4.22923042,2730.5,2728.5,8.1139]
[1724437402200,8.2229,2730.4,2728.5,8.1139]
[1724437402501,8.2229,2729.9,2728.6,3.66482]
[1724437402700,8.2229,2729.9,2728.2,3.66533]
[1724437402701,8.2229,2729.9,2729.3,3.66383]
[1724437402906,3.0,2729.8,2729.3,3.66383]
[1724437403206,3.0,2729.8,2728.7,12.145062]
[1724437403207,3.0,2729.8,2729.1,3.66418]
[1724437403403,0.07177311,2729.7,2728.9,3.66439]
[1724437403543,1.20124042,2729.7,2728.9,3.66439]
[1724437403901,1.20124042,2729.7,2729.0,3.66432]
[1724437404205,1.10124042,2729.7,2729.1,3.66419]
[1724437404403,1.10124042,2729.7,2728.9,3.66439]
[1724437404698,12.81395,2729.6,2728.6,3.66479]
[1724437404904,1.39151904,2729.5,2728.7,3.66474]
[1724437405112,8.6004,2729.6,2729.2,3.66399]
[1724437405311,8.6004,2729.6,2729.0,3.66426]
[1724437405599,8.6004,2729.6,2728.8,3.66457]
[1724437405742,8.6004,2729.6,2728.9,3.66447]
[1724437405942,8.6004,2729.6,2728.8,3.66457]
[1724437406142,0.86004,2729.5,2728.6,3.66487]
[1724437406444,12.27385,2729.4,2728.4,3.66513]
[1724437406645,3.0,2729.3,2728.4,3.66513]
[1724437407146,12.38846,2729.2,2728.2,3.66536]
[1724437407377,6.66421,2729.1,2728.0,3.6656]
[1724437407578,8.7243,2728.9,2728.0,3.6656]
[1724437407790,3.0,2729.1,2728.5,3.66492]
[1724437407960,3.0,2729.1,2728.5,3.66491]
[1724437408154,3.0,2729.2,2728.7,3.66462]
[1724437408369,8.7243,2729.3,2729.0,3.66433]
[1724437408568,8.7243,2729.3,2728.8,3.66459]
[1724437408795,8.7243,2729.3,2728.6,3.66482]
[1724437408944,8.7243,2729.3,2729.1,3.66411]
[1724437409146,8.6457,2729.7,2729.1,3.66411]
[1724437409429,8.6457,2729.7,2729.1,3.6642]
[1724437409576,8.6457,2729.7,2728.9,3.66443]
[1724437409577,8.6457,2729.7,2728.7,3.66465]
[1724437409795,8.6457,2729.6,2728.5,3.665]
[1724437409993,8.2094,2729.4,2728.5,3.665]
[1724437410306,11.87343,2729.3,2728.3,3.66525]
[1724437410466,3.66432,2729.1,2728.0,3.66567]
[1724437410793,3.66432,2729.1,2727.5,3.66635]
[1724437410794,11.8741,2728.8,2727.7,3.66604]
[1724437410961,8.2094,2728.8,2727.2,3.66666]
[1724437411307,0.55,2729.0,2727.2,3.66666]
[1724437411308,8.2094,2728.6,2727.8,3.66594]
[1724437411597,3.0,2728.5,2727.8,3.66595]
[1724437411745,3.0,2728.5,2727.7,3.66596]
[1724437411951,3.0,2728.5,2727.3,1.238936]
[1724437412152,8.2094,2728.6,2727.9,3.66577]
[1724437412454,8.2094,2728.6,2727.6,11.9589]
[1724437412455,8.2094,2728.6,2728.1,3.66545]
[1724437413550,8.2094,2728.6,2728.3,3.66523]
[1724437413752,0.86457,2729.5,2728.4,3.66514]
[1724437413753,8.0409,2729.4,2728.4,3.66514]
[1724437414249,3.0,2729.3,2728.4,3.66514]
[1724437414567,3.0,2729.3,2728.5,3.66499]
[1724437414761,1.10409,2729.2,2728.5,3.66499]
[1724437414975,8.0409,2729.1,2728.2,3.66541]
[1724437415374,3.0,2729.0,2728.2,3.66541]